bitfinex/quotes_ETHUSD_20240910
["timestamp","ask_amount","ask_price","bid_price","bid_amount"]
[1725982665288,0.55,2345.6,2345.1,2.4950035]
[1725982665518,0.55,2345.7,2345.1,2.4950035]
[1725982666454,0.55,2345.7,2345.1,2.2583]
[1725982667795,0.88921438,2345.8,2345.2,2.47717767]
[1725982668001,8.24921438,2345.9,2345.3,0.24771777]
[1725982668203,8.24921438,2345.9,2345.2,2.3919]
[1725982668410,1.89541898,2345.8,2345.2,2.3919]
[1725982668859,8.24921438,2345.9,2345.2,2.3919]
[1725982669056,8.24921438,2345.9,2345.2,2.94196355]
[1725982669302,0.55,2345.8,2345.2,2.94196355]
[1725982670994,0.55,2345.8,2345.3,2.377469]
[1725982671211,7.36,2345.9,2345.4,2.2922]
[1725982671409,7.36,2345.9,2345.5,0.0852598]
[1725982671624,8.24921438,2346.3,2345.6,2.2922]
[1725982671909,0.88921438,2346.2,2345.7,0.23774598]
[1725982672118,1.89537445,2346.2,2345.7,0.23774598]
[1725982672720,0.88921438,2346.2,2345.7,0.23774598]
[1725982673077,0.88921438,2346.2,2345.6,2.2922]
[1725982673078,0.55,2346.1,2345.6,2.2922]
[1725982675275,1.43921438,2346.1,2345.6,2.2922]
[1725982675525,1.89605096,2346.0,2345.6,2.2922]
[1725982675724,0.55,2345.9,2345.6,2.2922]
[1725982676076,1.43921438,2346.0,2345.3,0.08526245]
[1725982676273,1.43921438,2346.0,2345.3,2.2683]
[1725982676274,0.88921438,2345.9,2345.3,2.2683]
[1725982676476,0.55,2345.8,2345.3,2.2683]
[1725982676715,1.43921438,2345.8,2345.3,2.2683]
[1725982676923,0.23284288,2345.7,2345.3,2.2683]
[1725982677083,1.12205726,2345.7,2345.3,2.2683]
[1725982677278,0.55,2345.6,2345.3,2.2683]
[1725982678829,0.55,2345.7,2345.3,2.2683]
[1725982679010,0.88921438,2345.9,2345.4,0.08526787]
[1725982679530,0.88921438,2345.9,2345.5,2.2683]
[1725982680106,0.88921438,2345.8,2345.5,2.2683]
[1725982680308,0.88921438,2345.9,2345.5,2.2683]
[1725982680507,0.55,2345.8,2345.5,2.2683]
[1725982681844,0.55,2345.8,2345.5,2.52633979]
[1725982681996,0.88921438,2346.1,2345.7,2.2773]
[1725982682332,0.88921438,2346.0,2345.8,0.23625628]
[1725982682494,0.88921438,2346.0,2345.7,2.2773]
[1725982683344,0.88921438,2345.9,2345.4,2.4786]
[1725982683526,0.88921438,2345.8,2345.4,2.4786]
[1725982683738,0.88921438,2345.9,2345.4,2.4786]
[1725982683938,1.43921438,2345.8,2345.4,2.4786]
[1725982684181,1.43921438,2345.8,2345.6,2.39]
[1725982684182,0.55,2345.8,2345.6,2.39]
[1725982684310,0.88921438,2346.0,2345.6,2.39]
[1725982684623,0.88921438,2346.1,2345.6,2.39]
[1725982684822,0.88921438,2346.0,2345.6,2.66837954]
[1725982685058,0.88921438,2346.1,2345.6,2.66837954]
[1725982685212,0.88921438,2346.0,2345.6,2.66837954]
[1725982685413,0.88921438,2346.1,2345.7,0.27536481]
[1725982685925,0.55,2346.0,2345.7,0.36061878]
[1725982686125,0.55,2346.0,2345.8,2.316]
[1725982687530,0.88921438,2346.2,2345.8,2.316]
[1725982687759,0.55,2346.1,2345.9,0.31684668]
[1725982687960,0.88921438,2346.2,2346.0,2.2975]
[1725982688164,0.88921438,2346.2,2346.1,2.38273813]
[1725982688464,0.88921438,2346.2,2346.1,2.53577381]
[1725982688764,0.88921438,2346.2,2346.1,5.53577381]
[1725982688947,1.78262071,2346.5,2346.2,2.2975]
[1725982688948,1.89778899,2346.5,2346.2,2.2975]
[1725982689147,1.89778899,2346.5,2346.4,2.2975]
[1725982689330,1.89778899,2346.5,2346.1,5.2975]
[1725982689531,1.89778899,2346.5,2346.1,2.2975]
[1725982690267,0.88921438,2346.5,2346.1,2.2975]
[1725982690422,0.55,2346.4,2346.1,2.2975]
[1725982691076,0.55,2346.4,2346.1,2.52725]
[1725982691923,0.55,2346.4,2345.7,2.2975]
[1725982692160,0.55,2346.4,2345.7,2.38275104]
[1725982692370,0.55,2346.4,2345.9,2.3604]
[1725982692661,0.55,2346.4,2346.0,0.32980466]
[1725982692883,0.88921438,2346.5,2346.1,2.3604]
[1725982693040,0.88921438,2346.5,2346.2,0.08523227]
[1725982693223,0.88921438,2346.5,2346.3,2.4124]
[1725982693422,0.88921438,2346.5,2346.4,0.44976323]
[1725982693662,0.88921438,2346.5,2346.3,2.4124]
[1725982694768,0.55,2346.4,2346.3,2.4124]
[1725982696070,0.88921438,2346.5,2346.3,2.4124]
[1725982696266,0.88921438,2346.5,2346.4,2.7424659]
[1725982696570,0.88921438,2346.5,2346.4,5.7424659]
[1725982698968,0.88921438,2346.5,2346.4,5.65724]
[1725982699747,0.0234569,2346.9,2346.4,5.65724]
[1725982700071,0.0234569,2346.9,2346.5,0.65946487]
[1725982700252,0.0234569,2346.9,2346.4,5.74246455]
[1725982700458,0.0234569,2346.9,2346.1,2.2598]
[1725982700661,0.0234569,2346.9,2346.3,0.08522619]
[1725982700955,0.5734569,2346.9,2346.3,0.08522619]
[1725982701377,0.0234569,2346.9,2346.3,0.08522619]
[1725982701579,0.0234569,2346.9,2346.4,2.2598]
[1725982701888,0.0234569,2346.9,2346.5,0.31972133]
[1725982702747,0.0234569,2346.9,2346.5,0.23450262]
[1725982702947,0.0234569,2346.9,2346.4,2.34502274]
[1725982703391,0.0234569,2346.9,2346.3,3.0]
[1725982703575,0.5734569,2346.9,2346.1,2.4902]
[1725982703888,0.55,2346.9,2346.1,2.4902]
[1725982704091,0.5707005,2346.9,2346.1,2.4902]
[1725982704300,2.46569052,2346.9,2346.1,2.4902]
[1725982704594,1.45991488,2346.9,2346.1,2.4902]
[1725982705693,1.89538068,2346.8,2346.1,2.4902]
[1725982705895,0.55,2346.7,2346.1,3.23922]
[1725982706386,2.2806,2346.6,2345.8,2.4351]
[1725982706553,3.16981438,2346.6,2345.9,0.08524239]
[1725982706748,1.05539485,2346.5,2345.9,3.08524239]
[1725982707294,0.55,2346.5,2345.9,3.08524239]
[1725982708253,0.55,2346.5,2345.9,5.08524239]
[1725982708589,1.43921438,2346.6,2345.9,5.08524239]
[1725982709307,1.89650384,2346.5,2345.9,5.08524239]
[1725982709519,0.55,2346.4,2345.9,5.83727663]
[1725982709996,0.55,2346.5,2345.9,5.83727663]
[1725982710184,0.55,2346.5,2346.0,0.82723766]
[1725982710365,0.55,2346.5,2346.2,2.4869]
[1725982710561,2.8822,2346.5,2345.9,5.4869]
[1725982710768,4.28196923,2346.5,2345.9,2.4869]
[1725982711089,4.28196923,2346.5,2346.0,0.08524386]
[1725982711275,3.77141438,2346.5,2346.0,0.08524386]
[1725982711471,3.77141438,2346.5,2345.7,5.4869]
[1725982711472,3.77141438,2346.5,2345.8,0.08524243]
[1725982712561,0.88921438,2346.6,2346.0,2.2607]
[1725982712758,0.88921438,2346.6,2346.1,0.08523366]
[1725982712990,0.88921438,2346.7,2346.1,0.08523366]
[1725982713158,1.89736109,2346.7,2346.2,2.0]
[1725982713362,0.88921438,2346.7,2346.3,0.08522396]
[1725982713558,0.88921438,2346.7,2346.1,0.51982247]
[1725982713559,3.32601438,2346.6,2346.1,0.51982247]
[1725982713783,3.32601438,2346.6,2346.0,0.08523783]
[1725982713784,1.89774761,2346.5,2346.0,0.08523783]
[1725982714574,0.55,2346.4,2346.0,0.08523783]
[1725982714776,0.88921438,2346.6,2346.1,2.3068]
[1725982715065,0.88921438,2346.7,2346.2,0.52442775]
[1725982715295,0.88921438,2346.6,2346.3,0.08522363]
[1725982715496,1.89771695,2346.6,2346.3,0.66834637]
[1725982715694,0.88921438,2346.7,2346.3,0.66834637]
[1725982717231,1.43921438,2346.6,2346.3,0.08522363]
[1725982718272,0.88921438,2346.7,2346.3,0.08522363]
[1725982718674,0.88921438,2346.8,2346.3,0.08522363]
[1725982718880,1.43921438,2346.7,2346.3,0.66834637]
[1725982719109,0.55,2346.7,2346.3,0.66834637]
[1725982719419,0.90991488,2346.9,2346.4,2.4542]
[1725982719573,1.43921438,2346.8,2346.5,0.5974736]
[1725982719768,0.55,2346.8,2346.5,0.5974736]
[1725982721796,0.0207005,2346.9,2346.7,2.4763]
[1725982722126,0.0207005,2346.9,2346.8,0.53284128]
[1725982722299,0.0207005,2346.9,2346.8,3.53284128]
[1725982728455,0.0207005,2346.9,2346.8,6.00914128]
[1725982733038,0.0207005,2346.9,2346.6,0.08521604]
[1725982733204,0.0207005,2346.9,2346.3,4.4444]
[1725982733205,0.26154055,2346.9,2346.3,2.0]
[1725982733406,3.6783944,2346.6,2345.7,4.4444]
[1725982733608,3.6783944,2346.4,2345.8,0.08524533]
[1725982733862,1.43921438,2346.5,2345.8,0.08524533]
[1725982734049,0.88921438,2346.5,2345.8,0.08524533]
[1725982734351,0.55,2346.4,2345.8,0.53820986]
[1725982735022,1.43921438,2346.4,2345.8,3.0]
[1725982735260,1.43921438,2346.4,2345.5,0.0026558]
[1725982735261,4.24351293,2346.3,2345.5,3.08790362]
[1725982735466,0.55,2346.2,2345.5,3.82680398]
[1725982736048,5.11760878,2346.2,2345.5,0.0026558]
[1725982736382,0.88921438,2346.0,2345.5,0.0026558]
[1725982736579,0.55,2345.9,2345.5,0.0026558]
[1725982737457,0.55,2345.9,2345.5,0.08791554]
[1725982737893,0.55,2346.0,2345.5,0.08791554]
[1725982738849,0.92946144,2346.0,2345.5,0.0026558]
[1725982739093,1.81867582,2346.0,2345.5,0.0026558]
[1725982739697,0.92946144,2346.0,2345.5,0.0026558]
[1725982740291,0.92946144,2346.0,2345.5,0.0879156]
[1725982740978,0.55,2346.0,2345.5,0.0879156]
[1725982741478,0.88921438,2346.2,2345.5,3.0879156]
[1725982741804,11.07513413,2346.4,2345.7,2.0]
[1725982741805,10.63021438,2346.4,2345.7,2.0]
[1725982741964,10.63021438,2346.4,2345.8,0.08523943]
[1725982742165,8.24921438,2346.4,2345.8,0.08523943]
[1725982743008,7.36,2346.4,2345.8,0.08523943]
[1725982743178,8.24921438,2346.4,2345.8,0.08523943]
[1725982743717,0.55,2346.3,2345.8,0.08523943]
[1725982743870,0.55,2346.3,2345.8,2.47353943]
[1725982744071,0.55,2346.3,2345.9,0.44735394]
[1725982744400,0.55,2346.3,2346.0,0.08523966]
[1725982744574,2.4043,2346.2,2345.6,0.08524718]
[1725982744778,0.55,2346.1,2345.6,3.08524718]
[1725982744981,0.55,2346.1,2345.6,0.08524718]
[1725982746499,0.55,2346.2,2345.6,0.08524718]
[1725982746885,0.55,2346.2,2345.5,0.0026558]
[1725982746886,2.3878,2346.1,2345.5,0.0026558]
[1725982747215,0.93270144,2346.0,2345.5,0.0026558]
[1725982747387,0.55,2346.0,2345.5,0.08790988]
[1725982748716,0.55,2346.1,2345.5,0.08790988]
[1725982748922,3.31561438,2346.3,2345.5,0.08790988]
[1725982748923,0.55,2346.2,2345.5,0.59670087]
[1725982749220,0.55,2346.2,2345.5,3.59670087]
[1725982749424,3.31561438,2346.3,2345.7,2.0]
[1725982749425,2.4264,2346.3,2345.7,2.0]
[1725982749574,7.36,2346.4,2345.8,0.08524243]
[1725982750425,0.88921438,2346.6,2346.0,2.0]
[1725982750570,8.24921438,2346.8,2346.1,0.08522766]
[1725982750908,7.36,2346.8,2346.2,2.366]
[1725982751127,7.36,2346.8,2346.4,2.0]
[1725982751278,0.0207005,2346.9,2346.5,0.08521978]
[1725982751479,0.0207005,2346.9,2346.5,0.61825404]
[1725982751673,0.0207005,2346.9,2346.5,3.61825404]
[1725982754325,0.0207005,2346.9,2346.6,2.282]
[1725982754626,0.0207005,2346.9,2346.7,0.08521071]
[1725982756120,0.0207005,2346.9,2346.6,0.08521115]
[1725982756827,0.0207005,2346.9,2346.5,0.53792936]
[1725982756993,0.01932862,2346.9,2346.6,0.08522289]
[1725982757326,0.01932862,2346.9,2346.6,0.33901641]
[1725982760620,0.01932862,2346.9,2346.7,2.0]
[1725982760778,0.01932862,2346.9,2346.8,0.08520605]
[1725982760983,0.01932862,2346.9,2346.8,3.08520605]
[1725982763278,0.01932862,2346.9,2346.8,5.43860605]
[1725982763518,0.01932862,2346.9,2346.8,6.66077311]
[1725982764479,0.01932862,2346.9,2346.8,7.69806542]
[1725982764717,0.01932862,2346.9,2346.8,6.66077311]
[1725982768696,0.01932862,2346.9,2346.8,4.30737433]
[1725982768898,0.01932862,2346.9,2346.7,2.0]
[1725982769939,0.01932862,2346.9,2346.8,0.0852023]
[1725982770436,0.01932862,2346.9,2346.8,0.08520841]
[1725982770643,0.01932862,2346.9,2346.4,2.0]
[1725982770847,2.42102862,2346.9,2346.4,3.18780138]
[1725982770997,2.42102862,2346.9,2346.5,0.08521693]
[1725982771437,0.55,2346.8,2346.5,0.08521694]
[1725982771596,0.55,2346.8,2346.4,2.0]
[1725982772140,0.55,2346.8,2346.5,0.08522365]
[1725982772492,0.55,2346.8,2346.4,2.938]
[1725982772694,0.55,2346.8,2346.5,0.08522366]
[1725982772894,2.42102862,2346.9,2346.5,0.08522366]
[1725982773098,0.01932862,2346.9,2346.5,0.08522366]
[1725982774449,0.01932862,2346.9,2346.5,3.08522366]
[1725982774603,0.01932862,2346.9,2346.5,0.08522366]
[1725982774806,2.4993,2346.8,2346.5,0.08522366]
[1725982778206,0.01932862,2346.9,2346.5,0.08522366]
[1725982781384,2.4878,2346.8,2346.5,0.08522366]
[1725982781941,0.01932862,2346.9,2346.5,0.08522366]
[1725982783943,0.01932862,2346.9,2346.4,2.0]
[1725982784173,0.01932862,2346.9,2346.5,0.08522254]
[1725982784609,0.01932862,2346.9,2346.4,2.0]
[1725982785113,2.463,2346.8,2346.4,2.0]
[1725982785302,2.463,2346.8,2346.5,0.08522288]
[1725982785683,0.01932862,2346.9,2346.5,0.08522288]
[1725982786322,0.01932862,2346.9,2346.4,2.0]
[1725982786473,0.32256148,2346.9,2346.4,2.0]
[1725982786681,0.55,2346.8,2346.4,2.0]
[1725982787128,2.3465,2346.7,2346.2,0.08522433]
[1725982787292,0.83965,2346.6,2345.9,11.8759]
[1725982787616,0.83965,2346.6,2345.6,16.13676031]
[1725982787617,2.3465,2346.5,2346.0,0.08523453]
[1725982787872,2.3465,2346.5,2345.6,11.8759]
[1725982787873,0.55,2346.4,2345.7,0.08524256]
[1725982788031,0.55,2346.4,2345.7,1.27309814]
[1725982788193,0.55,2346.4,2345.8,0.08524255]
[1725982788879,2.4309,2346.2,2345.5,0.00402768]
[1725982789085,4.22676031,2346.1,2345.5,0.00402768]
[1725982789530,3.67676031,2345.7,2345.5,0.00402768]
[1725982789744,2.9296,2345.6,2345.5,0.00402768]
[1725982790031,3.59023603,2345.6,2345.5,0.00402768]
[1725982791394,2.9296,2345.6,2345.5,0.00402768]
[1725982792611,4.83614509,2345.6,2345.5,0.00402768]
[1725982792810,2.9296,2345.6,2345.5,0.00402768]
[1725982793496,9.81219878,2345.6,2345.5,0.00402768]
[1725982794104,11.61671087,2345.6,2345.5,0.00402768]
[1725982794352,11.19706821,2345.6,2345.5,0.00402768]
[1725982795417,10.75165422,2345.6,2345.5,0.00402768]
[1725982796350,8.84547665,2345.6,2345.5,0.00402768]
[1725982797029,10.74990606,2345.6,2345.5,0.00402768]
[1725982797216,14.19532005,2345.6,2345.5,0.00031823]
[1725982797410,12.86066838,2345.6,2345.5,0.00031823]
[1725982797644,12.73362958,2345.6,2345.5,0.00031823]
[1725982797805,11.84547665,2345.6,2345.5,0.00031823]
[1725982799022,8.84547665,2345.6,2345.5,0.00031823]
[1725982800219,4.31395189,2345.6,2345.5,0.00031823]
[1725982800419,2.3796,2345.6,2345.5,0.00031823]
[1725982800964,6.91112476,2345.6,2345.5,0.00031823]
[1725982801110,11.82853645,2345.6,2345.5,0.00031823]
[1725982801311,9.91112476,2345.6,2345.5,0.00031823]
[1725982801655,9.91112476,2345.6,2345.0,0.0233563]
[1725982801656,2.4793,2345.5,2345.0,0.0233563]
[1725982801806,2.4052,2345.1,2345.0,0.0233563]
[1725982802005,2.9552,2345.1,2345.0,0.0233563]
[1725982806031,0.55,2345.1,2345.0,0.0233563]
[1725982806277,0.55,2345.3,2345.0,0.0233563]
[1725982806439,2.26,2345.4,2345.0,0.0233563]
[1725982806650,3.04714525,2345.4,2345.0,0.0233563]
[1725982807538,2.319,2345.2,2345.0,0.0233563]
[1725982808073,0.55,2345.1,2345.0,0.0233563]
[1725982809442,0.78714525,2345.4,2345.0,0.0233563]
[1725982809649,2.319,2345.6,2345.0,0.0233563]
[1725982810187,11.89152476,2345.8,2345.1,2.4446]
[1725982810188,7.36,2345.8,2345.1,2.4446]
[1725982810341,7.36,2345.8,2345.2,0.54059301]
[1725982810559,6.96212476,2346.1,2345.2,3.54059301]
[1725982811676,6.96212476,2346.1,2345.1,2.4446]
[1725982811873,4.53152476,2345.8,2345.1,2.4446]
[1725982812201,6.96212476,2346.1,2345.1,2.4446]
[1725982812674,2.4306,2346.1,2345.2,0.0852722]
[1725982812853,0.55,2346.0,2345.2,0.84059505]
[1725982813058,0.55,2346.0,2345.2,3.84059505]
[1725982814601,0.55,2346.0,2345.2,0.75532285]
[1725982814917,0.55,2346.0,2345.1,2.52987155]
[1725982815976,4.53152476,2346.4,2345.3,2.2931]
[1725982816172,4.53152476,2346.4,2345.4,0.61457058]
[1725982816173,3.68022266,2346.2,2345.4,0.61457058]
[1725982816415,4.44510237,2346.4,2345.4,3.61457058]
[1725982816714,3.68022266,2346.2,2345.5,0.08525622]
[1725982816920,3.68022266,2346.2,2345.5,0.87602284]
[1725982818000,0.55,2346.1,2345.5,0.87602284]
[1725982818327,3.68022266,2346.0,2345.4,3.0]
[1725982818478,3.68022266,2345.8,2345.3,2.2931]
[1725982818916,0.55,2345.7,2345.3,2.2931]
[1725982820038,8.24670108,2346.5,2345.4,2.4862]
[1725982820235,8.24670108,2346.5,2345.5,0.08525223]
[1725982820236,7.36,2346.5,2345.5,0.08525223]
[1725982820526,7.36,2346.5,2345.6,2.4862]
[1725982820527,8.55269237,2346.5,2345.6,2.4862]
[1725982820682,8.55269237,2346.5,2345.7,0.08525225]
[1725982820989,1.19269237,2346.5,2345.7,0.08525225]
[1725982821191,3.68022266,2346.6,2345.7,0.08525225]
[1725982821405,0.55,2346.5,2345.7,0.08525225]
[1725982821603,3.68022266,2346.6,2345.8,2.4862]
[1725982821826,3.68022266,2346.6,2345.9,0.08524536]
[1725982822029,4.04824493,2346.6,2345.9,0.08524536]
[1725982822232,0.36802227,2346.6,2345.9,0.08524536]
[1725982822440,8.19612687,2346.9,2345.9,0.08524536]
[1725982822811,0.55,2346.8,2345.9,0.08524536]
[1725982823143,0.55,2346.8,2345.8,2.57144541]
[1725982823505,2.46624599,2346.8,2345.8,2.57144541]
[1725982823847,1.06623729,2346.7,2345.8,2.57144541]
[1725982824000,0.55,2346.6,2345.8,2.57144541]
[1725982824396,0.55,2346.6,2345.8,2.4862]
[1725982824716,0.55,2346.6,2345.9,0.08524698]
[1725982824913,0.55,2346.6,2345.8,5.57144816]
[1725982825237,5.07803663,2346.6,2345.8,5.4862]
[1725982825496,0.61442739,2346.5,2345.8,2.4862]
[1725982825626,2.8149,2346.4,2345.8,2.4862]
[1725982826034,0.55,2346.4,2345.8,2.4862]
[1725982826214,2.40088896,2346.7,2345.9,0.08526041]
[1725982826215,1.95293837,2346.7,2345.9,0.08526041]
[1725982826402,1.06623729,2346.7,2346.0,2.4057]
[1725982827105,5.41473771,2346.6,2345.8,2.3711]
[1725982827306,1.9174446,2346.5,2345.8,2.3711]
[1725982827509,0.55,2346.4,2345.8,2.3711]
[1725982828450,1.43670108,2346.4,2345.8,2.3711]
[1725982830317,0.88670108,2346.3,2345.4,3.08525709]
[1725982830552,0.88670108,2346.3,2345.4,2.3151]
[1725982830553,0.88670108,2346.1,2345.4,2.3151]
[1725982830758,0.55,2346.0,2345.4,2.3151]
[1725982831070,1.43670108,2346.0,2345.4,2.3151]
[1725982831227,0.23234022,2345.9,2345.4,2.3151]
[1725982831425,0.55,2345.8,2345.4,2.3151]
[1725982832279,0.55,2346.0,2345.4,2.3151]
[1725982833203,1.43670108,2346.0,2345.4,2.3151]
[1725982834217,1.43670108,2346.0,2345.4,2.54661]
[1725982834510,0.55,2346.0,2345.5,0.08526263]
[1725982834804,0.55,2346.0,2345.6,2.3844]
[1725982835006,0.55,2346.1,2345.7,0.08525161]
[1725982835302,0.88670108,2346.2,2345.8,2.4868]
[1725982835510,1.92048087,2346.2,2345.8,2.4868]
[1725982835708,0.88670108,2346.3,2345.8,2.57205152]
[1725982835920,0.88670108,2346.4,2345.9,0.25720515]
[1725982836062,0.88670108,2346.5,2346.0,2.54774162]
[1725982836264,1.78262071,2346.7,2346.2,2.4625]
[1725982836265,0.88670108,2346.7,2346.2,2.4625]
[1725982836608,1.33465167,2346.8,2346.3,0.65952469]
[1725982836609,0.88670108,2346.8,2346.3,0.65952469]
[1725982836765,1.91985043,2346.8,2346.3,0.57429947]
[1725982837113,1.91985043,2346.8,2346.2,2.54773401]
[1725982837420,1.91985043,2346.8,2346.2,2.4625]
[1725982837565,1.43670108,2346.7,2346.2,2.4625]
[1725982837774,1.91968272,2346.6,2345.9,2.343]
[1725982838080,2.46976238,2346.5,2345.9,2.343]
[1725982838279,1.43670108,2346.5,2345.9,2.343]
[1725982838587,0.88670108,2346.4,2345.9,2.343]
[1725982838794,0.78234022,2346.3,2345.9,2.343]
[1725982840482,1.43670108,2346.3,2345.9,2.343]
[1725982840712,0.55,2346.3,2345.9,2.343]
[1725982841403,2.46969039,2346.3,2345.9,2.343]
[1725982841737,0.55,2346.3,2345.9,2.343]
[1725982841935,0.55,2346.3,2345.7,2.4575]
[1725982842159,1.43670108,2346.3,2345.7,2.4575]
[1725982842294,1.43670108,2346.3,2345.4,2.4575]
[1725982842295,2.4297633,2346.2,2345.4,2.4575]
[1725982842661,0.88670108,2346.0,2345.4,2.4575]
[1725982842951,0.55,2345.9,2345.2,5.54276768]
[1725982843095,0.7969698,2345.9,2345.2,5.54276768]
[1725982843492,0.7969698,2345.9,2345.3,0.08526949]
[1725982843829,0.7969698,2345.9,2345.2,5.4575]
[1725982843830,2.71709651,2345.9,2345.2,5.4575]
[1725982843991,2.71709651,2345.9,2345.2,2.4575]
[1725982843992,1.68367088,2345.9,2345.2,2.4575]
[1725982844196,0.55,2345.9,2345.3,0.08527205]
[1725982844399,0.88670108,2346.1,2345.4,2.3033]
[1725982844640,0.88670108,2346.1,2345.5,0.52411433]
[1725982844800,1.92007143,2346.2,2345.6,2.3033]
[1725982845006,0.88670108,2346.2,2345.7,0.08525157]
[1725982845196,0.88670108,2346.3,2345.7,0.62410673]
[1725982845396,0.88670108,2346.2,2345.7,0.62410673]
[1725982845599,0.88670108,2346.3,2345.7,0.08525157]
[1725982846125,0.88670108,2346.4,2345.8,2.3033]
[1725982846336,0.88670108,2346.4,2345.9,0.08524256]
[1725982846513,0.88670108,2346.5,2345.9,0.08524256]
[1725982846703,0.88670108,2346.5,2345.9,0.64798233]
[1725982847252,0.88670108,2346.4,2345.9,0.64798233]
[1725982847414,0.55,2346.3,2345.9,0.08524256]
[1725982847606,0.55,2346.3,2345.8,2.3033]
[1725982847607,0.55,2346.3,2345.8,2.38854266]
[1725982848655,1.43670108,2346.3,2345.8,2.38854266]
[1725982848856,0.55,2346.3,2345.8,2.38854266]
[1725982849512,1.43670108,2346.3,2345.8,2.38854266]
[1725982849820,0.55,2346.3,2345.8,3.12739693]
[1725982850765,0.55,2346.3,2345.9,2.4385]
[1725982851048,2.4710586,2346.3,2346.0,0.08524254]
[1725982851234,0.55,2346.3,2346.0,0.08524254]
[1725982851416,1.43670108,2346.3,2346.0,0.08524254]
[1725982851965,1.71383636,2346.3,2345.9,2.4385]
[1725982852114,1.92144949,2346.2,2345.9,2.4385]
[1725982852313,0.55,2346.1,2345.9,2.4385]
[1725982852659,0.55,2346.1,2345.7,3.0]
[1725982852821,0.55,2346.1,2345.6,2.3128]
[1725982853362,0.55,2346.1,2345.7,0.08525573]
[1725982853854,0.55,2346.1,2345.7,3.08525573]
[1725982854054,0.55,2346.1,2345.8,0.08524908]
[1725982854913,2.22135275,2346.3,2345.9,2.4779]
[1725982855110,0.88670108,2346.3,2346.0,0.08524291]
[1725982855593,0.88670108,2346.2,2346.0,0.08524291]
[1725982856641,0.88670108,2346.2,2346.1,2.3564]
[1725982856840,0.88670108,2346.3,2346.1,2.3564]
[1725982857053,0.88670108,2346.3,2346.2,0.08523513]
[1725982857461,0.88670108,2346.5,2346.2,2.08523513]
[1725982857662,1.33465167,2346.6,2346.2,2.08523513]
[1725982857663,0.88670108,2346.6,2346.2,2.62939864]
[1725982857958,0.88670108,2346.6,2346.3,2.3196]
[1725982858118,1.33465167,2346.7,2346.3,2.3196]
[1725982858119,0.88670108,2346.8,2346.5,2.3196]
[1725982858321,1.92272912,2346.8,2346.6,0.08521874]
[1725982858638,0.88670108,2346.8,2346.6,0.08521874]
[1725982859043,0.88670108,2346.8,2346.5,2.3196]
[1725982859246,0.88670108,2346.7,2346.5,2.40481848]
[1725982859471,1.92242889,2346.7,2346.5,2.40481848]
[1725982859668,0.88670108,2346.7,2346.5,2.40481848]
[1725982859983,0.88670108,2346.7,2346.3,3.0]
[1725982860138,0.88670108,2346.6,2346.2,2.4813]
[1725982860339,1.92236498,2346.5,2346.0,5.4814]
[1725982860535,2.47262659,2346.4,2346.0,5.56663906]
[1725982860782,0.88670108,2346.4,2346.0,5.56663906]
[1725982861437,0.88670108,2346.2,2345.8,0.0852415]
[1725982861636,1.43670108,2346.3,2345.8,0.0852415]
[1725982861845,1.92287592,2346.2,2345.8,0.0852415]
[1725982862139,0.55,2346.1,2345.8,0.0852415]
[1725982862635,0.55,2346.1,2345.8,0.08524877]
[1725982862863,0.55,2346.1,2345.7,3.08524877]
[1725982863270,0.82713528,2346.1,2345.7,3.0]
[1725982863480,0.88670108,2346.0,2345.5,0.66192376]
[1725982863786,1.19154988,2345.9,2345.6,0.08525682]
[1725982864089,1.19154988,2345.9,2345.3,2.2925]
[1725982864090,1.43670108,2345.8,2345.3,2.2925]
[1725982864442,0.88670108,2345.9,2345.7,2.4046]
[1725982864657,0.88670108,2346.1,2345.8,0.08524921]
[1725982864855,1.43670108,2346.0,2345.7,2.48985431]
[1725982865087,0.88670108,2345.8,2345.2,2.423]
[1725982865381,1.10883636,2345.7,2345.3,0.08526733]
[1725982865540,1.92353986,2345.6,2345.3,0.08526733]
[1725982865739,0.88670108,2345.6,2345.3,0.08526733]
[1725982865942,0.88670108,2345.6,2345.3,3.0]
[1725982866237,1.92353921,2345.6,2345.2,2.423]
[1725982866465,0.88670108,2345.6,2345.2,2.50826878]
[1725982866690,0.88670108,2345.6,2345.3,3.0]
[1725982866869,0.55,2345.5,2345.3,3.0]
[1725982867281,0.88670108,2345.6,2345.3,3.55082713]
[1725982867594,1.92342593,2345.6,2345.3,3.55082713]
[1725982867745,0.88670108,2345.6,2345.3,3.0]
[1725982867946,0.88670108,2345.7,2345.3,3.0]
[1725982868147,1.33465167,2345.8,2345.3,3.08526876]
[1725982868148,0.88670108,2345.8,2345.3,3.08526876]
[1725982868348,0.88670108,2345.8,2345.4,0.75082688]
[1725982868586,8.24670108,2346.0,2345.5,4.47275772]
[1725982868791,3.11727238,2346.1,2345.6,3.0]
[1725982868792,0.88670108,2346.1,2345.6,3.0]
[1725982869091,0.88670108,2346.1,2345.8,2.3875]
[1725982869289,0.88670108,2346.2,2345.8,5.47274683]
[1725982869496,0.88670108,2346.3,2345.9,0.62200226]
[1725982869646,0.88670108,2346.2,2346.0,0.08524081]
[1725982869844,0.88670108,2346.2,2345.5,4.4788]
[1725982870076,0.88670108,2346.0,2345.6,0.08525392]
[1725982870502,0.88670108,2346.1,2345.6,3.08525392]
[1725982870787,0.88670108,2346.2,2345.6,3.08525392]
[1725982871091,0.88670108,2346.0,2345.6,3.84165931]
[1725982871248,0.88670108,2346.0,2345.6,3.08525392]
[1725982871457,1.43670108,2346.1,2345.6,3.08525392]
[1725982872261,0.88670108,2346.2,2345.6,3.08525392]
[1725982872574,0.88670108,2346.2,2345.7,3.08290539]
[1725982872789,1.03630828,2346.3,2345.7,3.08290539]
[1725982872790,0.88670108,2346.3,2345.8,3.08524133]
[1725982873303,0.88670108,2346.2,2345.8,3.08524133]
[1725982873458,0.88670108,2346.2,2345.8,3.702056]
[1725982873859,0.88670108,2346.2,2345.8,3.0]
[1725982874095,1.43670108,2346.1,2345.7,2.41174163]
[1725982874614,0.88670108,2346.1,2345.8,0.08525127]
[1725982874800,0.88670108,2346.2,2345.8,0.6264264]
[1725982875007,0.88670108,2346.2,2345.8,3.6264264]
[1725982875218,0.88670108,2346.2,2345.9,2.0]
[1725982875504,0.88670108,2346.4,2346.2,2.0]